Cogmind - Beta 13 @@@ ROGUE MODE // 2024.04.25 @ 03:34:35 Player: Exceptionally Mediocre Result: Destroyed by D-53 Grenadier with Mini Grenade Launcher Performance ------------- Evolutions (0) 0 Regions Visited (4) 800 Robots Destroyed (29) 145 Value Destroyed (432) 432 Prototype IDs (0) 0 Alien Tech Used (0) 0 Bonus (-37) -37 TOTAL SCORE: 1340 Bonus ------- Follower Combat Kills 25 Friendly Fire -62 Cogmind --------- Core Integrity 0/250 Matter 226/300 Energy 128/160 System Corruption 0% Temperature Cool (0) Movement Treading (320) Ox2 Location -9/Mines Parts ------- > --- POWER (1) -------- Light Nuclear Core > --- PROPULSION (2) --- Light Treads > --- UTILITY (2) ------ High-capacity Storage Unit Light Armor Plating > --- WEAPON (2) ------- Light Cannon Light Cannon > --- INVENTORY (20) --- Light Ion Engine Light Ion Engine Light Nuclear Core Large Battery (200) Structural Scanner Utility Shielding Light Armor Plating Hacking Suite Authchip [Propulsion] EM Pulse Gun Light Assault Rifle Light Assault Rifle Light Assault Rifle Light Assault Rifle Light Cannon Light Cannon Mini Grenade Launcher Mining Laser Peak State ------------ > --- POWER ------------ Light Nuclear Core > --- PROPULSION ------- Light Treads > --- UTILITY ---------- High-capacity Storage Unit Structural Scanner > --- WEAPON ----------- Light Cannon Mini Grenade Launcher > --- INVENTORY -------- Light Ion Engine Light Ion Engine Light Nuclear Core Large Battery Utility Shielding Light Armor Plating Light Armor Plating Hacking Suite Authchip [Propulsion] EM Pulse Gun Light Assault Rifle Light Assault Rifle Light Assault Rifle Light Assault Rifle Light Cannon Light Cannon Light Cannon Mining Laser [Rating: 11] Favorites ----------- Power Light Ion Engine Engine Light Ion Engine Power Core Light Nuclear Core Propulsion Light Treads Treads Light Treads Utility High-capacity Storage Unit Device Structural Scanner Storage High-capacity Storage Unit Protection Light Armor Plating Weapon Light Assault Rifle Energy Gun EM Pulse Gun Ballistic Gun Light Assault Rifle Ballistic Cannon Light Cannon Launcher Mini Grenade Launcher Build | -11 -10 -10 -10 -9 ------- Run | Yrd Mat Min Exi Min Slots Evolved . | . . . . . Power . | . . . . . Propulsion . | . . . . . Utility . | . . . . . Weapon . | . . . . . Parts Attached 18 | 8 3 1 . 6 Power 2 | 1 . . . 1 Engine 1 | 1 . . . . Core 1 | . . . . 1 Reactor . | . . . . . Propulsion 4 | 2 . 1 . 1 Treads 4 | 2 . 1 . 1 Leg . | . . . . . Wheel . | . . . . . Hover . | . . . . . Flight . | . . . . . Utility 6 | 2 3 . . 1 Device 2 | 1 1 . . . Storage 3 | 1 2 . . . Processor . | . . . . . Hackware . | . . . . . Protection 1 | . . . . 1 Artifact . | . . . . . Weapon 6 | 3 . . . 3 Energy Gun 1 | 1 . . . . Energy Cannon . | . . . . . Ballistic Gun 2 | 2 . . . . Ballistic Cannon 2 | . . . . 2 Launcher 1 | . . . . 1 Special Weapon . | . . . . . Impact Weapon . | . . . . . Slashing Weapon . | . . . . . Piercing Weapon . | . . . . . Special Melee Weapon . | . . . . . Unidentified Prototypes . | . . . . . Parts Lost 4 | . . . . 4 Power 1 | . . . . 1 Propulsion 2 | . . . . 2 Utility . | . . . . . Weapon 1 | . . . . 1 Highest Loss Streak 3 | . . . . 3 To Critical Strikes . | . . . . . Average Slot Usage (%) 98 | . 100 100 100 93 Engine 13 | . 14 14 14 8 Treads 27 | . 28 28 28 22 Device 14 | . 14 14 14 14 Storage 14 | . 14 14 14 14 Ballistic Gun 25 | . 28 28 28 14 Launcher 1 | . . . . 7 Naked Turns . | . . . . . Heaviest Build 50 | 11 46 46 46 50 Greatest Support 40 | 40 40 40 40 40 Greatest Overweight (x) 2 | . 1 1 1 2 Average Overweight (x) . | . . 1 1 1 Largest Inventory Capacity 20 | 8 20 20 20 20 Average Capacity 18 | 7 18 20 20 20 Most Carried 20 | 3 16 17 17 20 Average Carried 13 | 2 10 16 17 18 Final Capacity 20 | 8 20 20 20 20 Final Carried 18 | 3 16 17 17 18 Class Distribution -------------------- 100% | Mutant Dominant Class ---------------- Mutant | -10/Materials Mutant | -10/Mines Mutant | -10/Exiles Mutant | -9/Mines Resources | -11 -10 -10 -10 -9 ----------- Run | Yrd Mat Min Exi Min Matter Collected 606 | 306 140 34 . 126 Remotely . | . . . . . Salvage Created 815 | 134 404 128 . 149 Parts 71 | 11 41 13 . 6 Haulers Intercepted 1 | . 1 . . . Recyclers Shooed 1 | 1 . . . . Parts Field Recycled . | . . . . . Retrieved Matter . | . . . . . Parts Self-Destructed . | . . . . . Prevented . | . . . . . Kills | -11 -10 -10 -10 -9 ------- Run | Yrd Mat Min Exi Min Combat Hostiles Destroyed 29 | . 11 3 . 15 Guns 15 | . 11 3 . 1 AOE 14 | . . . . 14 Classes Destroyed 10 | 3 6 . . 1 Worker 2 | 1 1 . . . Builder 2 | . 1 . . 1 Tunneler 4 | 3 . 1 . . Hauler 1 | . 1 . . . Recycler 1 | 1 . . . . Operator 2 | . 2 . . . Watcher 2 | . 2 . . . Swarmer 9 | . 8 1 . . Grunt 6 | . 3 2 . 1 Assembled 14 | . . . . 14 Best Kill Streak 15 | 3 4 4 . 15 Combat Bots Only 14 | . 3 3 . 14 Max Kills in Single Turn 2 | 1 2 2 . 2 Gunslinging 1 | . . 1 . . Exploded 2 | . . . . 2 Melee . | . . . . . Uniques/NPCs Destroyed . | . . . . . Combat | -11 -10 -10 -10 -9 -------- Run | Yrd Mat Min Exi Min Hostile Shots Fired 81 | . 41 24 . 16 Missed 12 | . 7 4 . 1 Damage Taken 891 | . 278 209 . 404 Core 257 | . 78 39 . 140 Absorbed by Shields . | . . . . . Core Remaining (%) 100 | 100 . . . . Volleys Fired 100 | 13 55 12 . 20 Largest 2 | 2 2 2 . 2 Hottest 50 | 40 40 40 . 50 Shots Fired 191 | 26 110 24 . 31 Gun 176 | 26 110 24 . 16 Cannon 1 | . . . . 1 Launcher 14 | . . . . 14 Special . | . . . . . Kinetic 177 | 26 110 24 . 17 Thermal . | . . . . . Explosive 14 | . . . . 14 Electromagnetic . | . . . . . Robot Hit Streak 11 | 11 8 5 . 9 Robot Miss Streak 6 | 1 6 2 . 3 Penetration Max . | . . . . . Secondary Targets 3 | . 1 2 . . Max Gunslinging Chain 1 | . 1 1 . . Shots Hit Robots 114 | 18 67 16 . 13 Core Hits 79 | 10 31 9 . 29 Critical Kills 2 | . 1 . . 1 Critical Parts Destroyed 2 | . 2 . . . Critical Strikes 4 | . 3 . . 1 Destroy 4 | . 3 . . 1 Melee Attacks . | . . . . . Impact . | . . . . . Slashing . | . . . . . Piercing . | . . . . . Sneak Attacks . | . . . . . Combat Hostiles . | . . . . . Follow-up Attacks . | . . . . . Damage Inflicted 2146 | 147 572 120 . 1307 Guns 918 | 147 572 120 . 79 Cannons 19 | . . . . 19 Explosions 1209 | . . . . 1209 Melee . | . . . . . Ramming . | . . . . . Kinetic 937 | 147 572 120 . 98 Thermal . | . . . . . Explosive 1209 | . . . . 1209 Electromagnetic . | . . . . . Impact . | . . . . . Slashing . | . . . . . Piercing . | . . . . . Highest Corruption . | . . . . . Average Corruption . | . . . . . Corruption Purged . | . . . . . Corruption Blocked . | . . . . . Overload Shots . | . . . . . Overflow Damage 25 | . . . . 25 Projectiles . | . . . . . Explosions 25 | . . . . 25 Melee . | . . . . . Knockbacks . | . . . . . Impact . | . . . . . Kinetic . | . . . . . Secondary . | . . . . . Self-Inflicted Damage 93 | . . . . 93 Shots 3 | . . . . 3 Rammed . | . . . . . Targets Rammed . | . . . . . Kicked . | . . . . . Crushed . | . . . . . Highest Temperature 40 | . 6 18 . 40 Average Temperature 11 | . 6 8 . 15 Received Heat Transfer 148 | . 18 90 . 40 Siege Activations . | . . . . . Robots Corrupted . | . . . . . Combat Hostiles . | . . . . . Parts Fried . | . . . . . Impact Corruptions . | . . . . . Robots Melted . | . . . . . Combat Hostiles . | . . . . . Parts Melted . | . . . . . Heat Transferred . | . . . . . Parts Sabotaged . | . . . . . Parts Stolen . | . . . . . Parts Stripped . | . . . . . Power Chain Reactions . | . . . . . Alert | -11 -10 -10 -10 -9 ------- Run | Yrd Mat Min Exi Min Peak Influence 235 | 25 235 115 . 67 Initial 25 | . 16 25 . . Average 58 | 11 77 66 . 10 Maximum Alert Level 1 | . 1 . . . Low Security (%) 98 | 100 97 100 . 100 Level 1 1 | . 2 . . . Level 2 . | . . . . . Level 3 . | . . . . . Level 4 . | . . . . . Level 5 . | . . . . . High Security . | . . . . . Max Security . | . . . . . Squads Dispatched 3 | . 3 . . . Investigation . | . . . . . Extermination . | . . . . . Reinforcement 3 | . 3 . . . Assault . | . . . . . Garrison . | . . . . . Intercept . | . . . . . Searches Triggered . | . . . . . Construction Impeded . | . . . . . Haulers Reinforced . | . . . . . Active Scanning Responses . | . . . . . Cargo Convoy Interrupts . | . . . . . Stealth | -11 -10 -10 -10 -9 --------- Run | Yrd Mat Min Exi Min Distress Signals 1 | . 1 . . . Communications Jammed . | . . . . . Distress Signals . | . . . . . Times Spotted 45 | . 22 3 . 20 Peak Tracking Total 6 | . 3 3 . 6 Tactical Retreats 7 | . 7 . . . Traps | -11 -10 -10 -10 -9 ------- Run | Yrd Mat Min Exi Min Traps Triggered . | . . . . . Indirectly . | . . . . . Trap Hack Attempts . | . . . . . Triggered . | . . . . . Disarmed . | . . . . . Reprogrammed . | . . . . . Reused . | . . . . . Traps Extracted . | . . . . . Installed . | . . . . . Triggered . | . . . . . Machines | -11 -10 -10 -10 -9 ---------- Run | Yrd Mat Min Exi Min Machines Disabled . | . . . . . Max in Single Turn . | . . . . . Machines Repaired . | . . . . . Machines Dismantled . | . . . . . Machines Sabotaged . | . . . . . Overloaded Fab Kills . | . . . . . Hacking | -11 -10 -10 -10 -9 --------- Run | Yrd Mat Min Exi Min Machines Accessed 5 | . 5 . . . Terminals 5 | . 5 . . . Fabricators . | . . . . . Repair Stations . | . . . . . Recycling Units . | . . . . . Scanalyzers . | . . . . . Garrison Access . | . . . . . Total Hacks 12 | . 12 . . . Successful 6 | . 6 . . . Failed 6 | . 6 . . . Catastrophic 2 | . 2 . . . Database Lockouts . | . . . . . Manual 12 | . 12 . . . Terminals 12 | . 12 . . . Fabricators . | . . . . . Repair Stations . | . . . . . Recycling Units . | . . . . . Scanalyzers . | . . . . . Garrison Access . | . . . . . Terminal Hacks 1 | . 1 . . . Terminal Index 1 | . 1 . . . Fabricator Hacks . | . . . . . Repair Station Hacks . | . . . . . Recycling Unit Hacks . | . . . . . Scanalyzer . | . . . . . Garrison Access Hacks . | . . . . . Unauthorized Hacks 5 | . 5 . . . Terminals 5 | . 5 . . . Botnet 5 | . 5 . . . Fabricators . | . . . . . Repair Stations . | . . . . . Recycling Units . | . . . . . Scanalyzers . | . . . . . Garrison Access . | . . . . . Data Cores Recovered . | . . . . . Used . | . . . . . Hacking Detections 4 | . 4 . . . Full Trace Events 1 | . 1 . . . Feedback Events . | . . . . . Feedback Blocked . | . . . . . Robot Schematics Acquired . | . . . . . Robots Built . | . . . . . Authchips . | . . . . . Time . | . . . . . Total Robot Build Rating . | . . . . . Part Schematics Acquired . | . . . . . Parts Built . | . . . . . Authchips . | . . . . . Time . | . . . . . Total Part Build Rating . | . . . . . Parts Repaired . | . . . . . Time . | . . . . . Parts Recycled . | . . . . . Recycled Matter . | . . . . . Retrieved Matter . | . . . . . Retrieved Components . | . . . . . Parts Scanalyzed . | . . . . . Part Schematics Acquired . | . . . . . Parts Damaged . | . . . . . Bothacking | -11 -10 -10 -10 -9 ------------ Run | Yrd Mat Min Exi Min Used RIF Installer . | . . . . . Robots Hacked . | . . . . . Non-combat . | . . . . . Combat . | . . . . . Robot Hacks Applied . | . . . . . Relay Couplers Released . | . . . . . Fabnet Peak Effective % . | . . . . . Robots Rewired . | . . . . . Allies Hacked . | . . . . . Hacks Repelled . | . . . . . Allies | -11 -10 -10 -10 -9 -------- Run | Yrd Mat Min Exi Min Total Allies 3 | . . . . 3 Largest Group 3 | . . . . 3 Highest-Rated Group 40 | . . . . 40 Highest-Rated Ally 16 | . . . . 16 Total Orders . | . . . . . Ally Attacks 32 | . . . . 32 Total Damage 294 | . . . . 294 Kills 5 | . . . . 5 Allies Corrupted . | . . . . . Allies Melted . | . . . . . Intel | -11 -10 -10 -10 -9 ------- Run | Yrd Mat Min Exi Min Robot Analysis Total . | . . . . . Derelict Logs Recovered 1 | . . . . 1 Drone Launches . | . . . . . Drone Recoveries . | . . . . . Exploration | -11 -10 -10 -10 -9 ------------- Run | Yrd Mat Min Exi Min Turns Passed 3854 | 156 1715 413 953 617 Spaces Moved 1532 | 69 698 159 398 208 Core 2 | 2 . . . . Treads 1530 | 67 698 159 398 208 Legs . | . . . . . Wheels . | . . . . . Hover . | . . . . . Flight . | . . . . . Fastest Speed 50 | 50 160 240 240 240 Average Speed 231 | 156 222 240 240 267 Slowest Speed 320 | 160 240 240 240 320 Overloaded Moves . | . . . . . Propulsion Burnouts . | . . . . . Robots Hopped . | . . . . . Cave-ins Triggered . | . . . . . Exploration Rate (%) 54 | 6 85 48 89 46 Regions Visited 4 Branch Regions 3 Pre-discovered Areas . | . . . . . Known Exits Taken . | . . . . . Unknown Exits Taken 4 | 1 1 1 1 . Scrap Searched . | . . . . . Spaces Dug . | . . . . . Terrain Destroyed 138 | . . . . 138 Melee . | . . . . . Projectile . | . . . . . AOE 138 | . . . . 138 Terrain Rammed . | . . . . . Walls Destroyed . | . . . . . Machines Disabled . | . . . . . Actions | -11 -10 -10 -10 -9 --------- Run | Yrd Mat Min Exi Min Total 1678 | 92 777 172 397 240 Wait 3 | . 3 . . . Move 1528 | 68 697 158 397 208 Hop . | . . . . . Pick Up 23 | 3 14 1 . 5 Fast Attach 8 | 7 1 . . . Attach 3 | . . . . 3 Detach 1 | . 1 . . . Swap 7 | 1 2 1 . 3 Drop 5 | . 4 . . 1 Fire 100 | 13 55 12 . 20 Melee . | . . . . . Ram . | . . . . . Kick . | . . . . . Crush . | . . . . . Escape Stasis . | . . . . . Rewire . | . . . . . Trap . | . . . . . Miscellaneous . | . . . . . Route ------- -11/Scrapyard -10/Materials (discovered 3 exits: [*Mat x2] / [*Min]) -10/Mines -10/Exiles -9/Mines (discovered 1 exit: [*Mat]) History --------- Turn | Location | Event 7 | -11/Scrapyard | Discovered new exit (range 15) 157 | -11/Scrapyard | Entered Materials 310 | -10/Materials | Build established: Mutant 442 | -10/Materials | Discovered new exit (range 5) 1174 | -10/Materials | Discovered new exit (range 8) 1464 | -10/Materials | Discovered new exit (range 16) 1872 | -10/Materials | Entered Mines 1887 | -10/Mines | Met a Derelict bent on vengeance 2273 | -10/Mines | Deemed a non-threat by the Exiles lab entrance 2273 | -10/Mines | Discovered new exit (range 6) 2285 | -10/Mines | Entered Exiles 2285 | -10/Exiles | Found Exiles lab abandoned 3212 | -10/Exiles | Discovered new exit (range 14) 3238 | -10/Exiles | Entered Mines 3486 | -9/Mines | Assisted by bots powering up and referring to "LRC-V3" 3514 | -9/Mines | Assembled infested the area 3521 | -9/Mines | Learned 8 Materials zone layouts 3551 | -9/Mines | Core integrity fell below 50% 3590 | -9/Mines | Destroyed 14 combat bots 3618 | -9/Mines | Core integrity fell below 20% 3648 | -9/Mines | Lost 3 parts (1p1n1w) 3850 | -9/Mines | Discovered new exit (range 9) 3855 | -9/Mines | Destroyed by D-53 Grenadier with Mini Grenade Launcher Last Messages --------------- 03613_ U-05 Engineer lays Concrete. 03614_ U-05 Engineer builds a Wall. 03617_ Lgt. Assault Rifle destroyed. 03617_ Destroyed Lgt. Assault Rifle. 03617_ Lgt. Treads destroyed. 03617_ Destroyed Lgt. Treads. 03617_ as-06197 destroyed. 03618_ U-05 Engineer lays Concrete. 03621_ U-05 Engineer builds a Wall. 03622_ The unstable cave ceiling collapses. 03634_ U-05 Engineer builds a Wall. 03638_ U-05 Engineer lays Concrete. 03639_ U-05 Engineer builds a Wall. 03642_ The unstable cave ceiling collapses. 03644_ U-05 Engineer builds a Wall. 03784_ Acquired 3 matter. 03795_ Acquired 2 matter. 03802_ Acquired 70 matter. 03850_ Trooper 2a destroyed. 03850_ EXIT=FOUND Map ----- +----------------------------------------------------+ | | | | | | | | | | | | | | | | | | | | | | | | | | | | | ??????????????????????#########??????????????????? | | ?????????????????????###########?????????????????? | | ?????????????????????### ####????????????????? | | ?????????????????????## ###########????????? | | ???????????? ??????## ##########????????? | | ????????????## ????#### #### ###??? | | ????????????### ????### ########??? | | ?????????????### < #### ########" ##??? | | ??????????????### ### ############### ##??? | | ???????????????## ###????########=##### | | ???????????????### ##??????????## ##### | | ????????????????### @ ## ??????????## | | ?????????????????### % # ???????????## | | ?????????????????### d ??????????######## | | ??????????????????## d ???????######## | | ??????????????????## # # ????????????? | | ??????????????????########### t ??????????? | | ??????????????????############# ??????????? | | ????????????????????????????#### ??????????? | | ??????????????????????????????## #### ??????????? | | ????????????????????????????????? #####??????????? | | ????????????????????????????????? #?????????????? | | ??????????????????????????????????? ??#####??????? | | ?????????????????????????????????? #######?????? | | ????????????????????????????????## ## ###????? | | ????????????????????????????????## ###???? | | ???????????????????????????????? ###### | | ????????????????????????????????? % ##### | | ?????????????????????????????????## [%* ### | | ?????????????????????????????????# = # | | ???????????????????????????????????????## #### | | ???????????????????????????????????????### = | | ????????????????????????????????????????### =[= | | ????????????????????????????????????????######## | | ?????????????????????????????????????????####### | | ?????????????????????????????????????????????##### | +----------------------------------------------------+ Best States ------------- Heat Dissipation 25 Energy Generation 14 Energy Capacity 160 Matter Stores 300 Matter Capacity 300 Sight Range 16 Terrain Scan Range 16 Terrain Scan Density 10 Evasion (%) 40 Recoil Reduction 2 Authchip Count 2 Item Schematics ----------------- None Robot Schematics ------------------ None Fabricated ------------ Nothing Alien Tech Used ----------------- None Achievements -------------- None Challenges ------------ None Game ------ Seed SignalArmorBoregun Manual? 0 Play Time 00:18:17 Cumulative 112.9 hours Start 2024.04.25 @ 03:17:02 End 2024.04.25 @ 03:34:35 Sessions 1 Manual Loads 0 Difficulty Rogue Special Mode None Game No. 131 Rogue 131 Adventurer 0 Explorer 0 Win Type - Total 0 Types 0/0/0/0/0/0/0/0/0 Lore% 29 Gallery% 55 Achievement% 41 Wizard Run 0 Options --------- Layout 1 ASCII 0 Keyboard 1 Movement Vi Keybinds 0 Fullscreen 1 Font 24/Smallcaps Map View 50x35 Zoom Use 0% Tactical HUD 1 Map Filters NONE Filters NONE Steam 1 RUN: 8fc3c7dc-5e2c-4d39-aef2-f395f546ff83